bitfinex-derivatives/quotes_BNBF0:USTF0_20250908
["timestamp","ask_amount","ask_price","bid_price","bid_amount"]
[1757300688818,1.00921538,880.74,879.14,1.232]
[1757300689015,1.00921538,880.76,879.14,1.232]
[1757300689518,1.00921538,880.85,879.18,1.01480322]
[1757300690420,1.00921538,880.86,879.18,1.01480322]
[1757300690616,1.00921538,880.99,879.31,1.01480322]
[1757300691319,1.00921538,881.02,879.28,1.01480322]
[1757300691516,1.00921538,880.92,879.35,1.01480322]
[1757300691720,1.00921538,880.93,879.36,1.01480322]
[1757300692217,1.00921538,880.93,879.35,1.01480322]
[1757300692420,1.00921538,880.94,879.34,1.01480322]
[1757300692621,1.00921538,880.93,879.35,1.01480322]
[1757300692822,1.00921538,880.94,879.34,1.01480322]
[1757300693117,1.00921538,880.94,879.33,1.01480322]
[1757300693422,1.00921538,880.95,879.33,1.01480322]
[1757300694222,1.00921538,880.95,879.32,1.01480322]
[1757300694421,1.00921538,880.95,879.31,1.01480322]
[1757300694718,1.00921538,880.93,879.32,1.01480322]
[1757300695221,1.00921538,880.94,879.31,1.01480322]
[1757300695518,1.00921538,880.84,879.38,1.01480322]
[1757300696317,1.00921538,880.85,879.37,1.01480322]
[1757300696622,1.00921538,880.86,879.36,1.01480322]
[1757300697121,1.00921538,880.86,879.35,1.01480322]
[1757300697722,1.00921538,880.87,879.34,1.01480322]
[1757300698318,1.00921538,880.87,879.33,1.01480322]
[1757300699219,1.00921538,880.87,879.32,1.01480322]
[1757300699523,1.00921538,880.73,879.17,1.01480322]
[1757300700923,1.00921538,880.75,879.15,1.01480322]
[1757300701120,1.00921538,880.76,879.16,1.01480322]
[1757300702125,1.00921538,880.74,879.17,1.01480322]
[1757300702324,1.00921538,880.78,879.2,1.01480322]
[1757300704624,1.00921538,880.78,879.19,1.01480322]
[1757300705323,1.00921538,880.78,879.2,1.01480322]
[1757300705622,1.00921538,880.78,879.19,1.01480322]
[1757300706126,1.00921538,880.78,879.2,1.01480322]
[1757300707225,1.00921538,880.78,879.21,1.01480322]
[1757300707526,1.00921538,880.78,879.2,1.01480322]
[1757300707821,1.00921538,880.77,879.21,1.01480322]
[1757300708426,1.00921538,880.75,879.2,1.01480322]
[1757300708725,1.00921538,880.75,879.19,1.01480322]
[1757300708921,1.00921538,880.75,879.2,1.01480322]
[1757300709223,1.00921538,880.75,879.23,1.01480322]
[1757300709420,1.00921538,880.82,879.29,1.01480322]
[1757300709622,1.00921538,880.85,879.27,1.01480322]
[1757300710222,1.00921538,880.85,879.14,1.232]
[1757300710223,1.00921538,880.85,879.28,1.01480322]
[1757300710827,1.00921538,880.84,879.29,1.01480322]
[1757300711226,1.00921538,880.83,879.32,1.01480322]
[1757300711821,1.00921538,880.88,879.28,1.01480322]
[1757300712023,1.00921538,880.87,879.29,1.01480322]
[1757300712224,1.00921538,880.86,879.31,1.01480322]
[1757300713228,1.00921538,880.86,879.33,1.01480322]
[1757300714237,1.00921538,880.86,879.36,1.01480322]
[1757300714431,1.00921538,880.85,879.36,1.01480322]
[1757300715532,1.00921538,880.85,879.37,1.01480322]
[1757300715929,1.00921538,880.87,879.35,1.01480322]
[1757300716233,1.00921538,880.87,879.36,1.01480322]
[1757300716728,1.00921538,880.87,879.14,1.232]
[1757300716729,1.00921538,880.87,879.35,1.01480322]
[1757300717129,1.00921538,880.87,879.36,1.01480322]
[1757300717631,1.00921538,880.87,879.14,1.232]
[1757300717632,1.00921538,880.88,879.35,1.01480322]
[1757300717929,1.00921538,880.86,879.38,1.01480322]
[1757300718234,1.00921538,880.89,879.42,1.01480322]
[1757300718434,1.00921538,880.89,879.41,1.01480322]
[1757300718634,1.00921538,880.92,879.39,1.01480322]
[1757300719234,1.00921538,880.91,879.4,1.01480322]
[1757300719636,1.00921538,880.88,879.36,1.01480322]
[1757300720135,1.00921538,880.84,879.39,1.01480322]
[1757300720335,1.00921538,880.84,879.4,1.01480322]
[1757300721138,1.00921538,880.84,879.41,1.01480322]
[1757300721338,1.00921538,880.84,879.4,1.01480322]
[1757300722138,1.00921538,880.84,879.41,1.01480322]
[1757300723244,1.00921538,880.84,879.42,1.01480322]
[1757300724242,1.00921538,880.83,879.43,1.01480322]
[1757300725245,1.00921538,880.82,879.43,1.01480322]
[1757300725841,1.00921538,880.8,879.45,1.01480322]
[1757300726146,1.00921538,880.8,879.44,1.01480322]
[1757300726443,1.00921538,880.79,879.44,1.01480322]
[1757300726642,1.00921538,880.79,879.45,1.01480322]
[1757300727241,1.00921538,880.78,879.45,1.01480322]
[1757300727445,1.00921538,880.78,879.46,1.01480322]
[1757300727646,1.00921538,880.79,879.46,1.01480322]
[1757300727847,1.00921538,880.78,879.47,1.01480322]
[1757300728249,1.00921538,880.72,879.51,1.01480322]
[1757300728545,0.81788293,880.72,879.52,1.01480322]
[1757300729049,1.5234977,880.89,879.52,1.01480322]
[1757300729247,1.5234977,880.88,879.52,1.01480322]
[1757300729544,1.5234977,881.0,879.64,1.01480322]
[1757300729848,1.5234977,880.99,879.64,1.01480322]
[1757300730047,1.5234977,880.98,879.65,1.01480322]
[1757300731346,1.5234977,881.05,879.61,1.01480322]
[1757300731550,1.5234977,881.04,879.61,1.01480322]
[1757300732147,1.5234977,881.04,879.62,1.01480322]
[1757300732349,1.5234977,881.03,879.62,1.01480322]
[1757300734146,1.5234977,881.03,879.63,1.01480322]
[1757300735151,1.5234977,881.02,879.63,1.01480322]
[1757300736753,1.5234977,881.0,879.64,1.01480322]
[1757300737249,1.5234977,881.0,879.65,1.01480322]
[1757300737550,1.5234977,881.01,879.64,1.01480322]
[1757300738153,1.5234977,881.05,879.62,1.01480322]
[1757300739250,1.5234977,881.05,879.63,1.01480322]
[1757300739552,1.5234977,880.87,879.45,1.01480322]
[1757300740055,1.5234977,881.15,879.27,1.01480322]
[1757300740257,1.5234977,881.05,879.18,1.01480322]
[1757300741255,1.5234977,881.04,879.19,1.01480322]
[1757300742454,1.5234977,881.03,879.2,1.01480322]
[1757300743162,1.5234977,881.02,879.21,1.01480322]
[1757300744159,1.5234977,881.01,879.22,1.01480322]
[1757300745054,1.5234977,881.01,879.23,1.342]
[1757300745261,1.5234977,881.0,879.23,2.35680322]
[1757300746260,1.5234977,880.99,879.24,1.01480322]
[1757300747362,1.5234977,880.98,879.25,1.01480322]
[1757300747963,1.5234977,880.97,879.25,1.01480322]
[1757300748262,1.5234977,880.96,879.26,1.01480322]
[1757300749160,1.5234977,880.95,879.27,1.01480322]
[1757300749459,1.5234977,881.0,879.32,1.01480322]
[1757300749964,1.5234977,880.67,879.51,1.01480322]
[1757300750161,2.54877251,881.33,879.52,1.01480322]
[1757300750964,2.54877251,881.34,879.53,1.01480322]
[1757300751564,2.54877251,881.35,879.53,1.01480322]
[1757300752060,2.54877251,881.34,879.53,1.01480322]
[1757300753064,2.54877251,881.38,879.52,1.01480322]
[1757300753666,3.56828151,881.72,879.51,1.01480322]
[1757300753667,2.54877251,881.4,879.51,1.01480322]
[1757300754066,2.54877251,881.39,879.51,1.01480322]
[1757300754269,2.54877251,881.39,879.5,1.01480322]
[1757300754669,2.54877251,881.4,879.5,1.01480322]
[1757300755169,2.54877251,881.32,879.53,1.01480322]
[1757300755371,2.54877251,881.32,879.52,1.01480322]
[1757300755668,2.54877251,881.33,879.52,1.01480322]
[1757300757269,2.54877251,881.36,879.51,1.01480322]
[1757300757773,2.54877251,881.3,879.53,1.01480322]
[1757300757973,2.54877251,881.3,879.54,1.01480322]
[1757300758273,2.54877251,881.25,879.54,1.01480322]
[1757300758572,1.01781335,880.47,879.54,1.01480322]
[1757300758774,0.83545686,880.47,879.54,1.01480322]
[1757300759069,2.54877251,881.24,879.55,1.01480322]
[1757300759269,2.54877251,881.25,879.55,1.01480322]
[1757300759572,2.54877251,881.25,879.46,1.01480322]
[1757300759871,2.54877251,881.16,879.46,1.01480322]
[1757300760573,2.54877251,881.16,879.42,1.01480322]
[1757300760873,3.56828151,881.47,879.42,1.01480322]
[1757300760874,2.54877251,881.33,879.42,1.01480322]
[1757300761074,2.54877251,881.33,879.39,1.01480322]
[1757300761473,0.19729737,881.86,879.23,1.342]
[1757300761972,2.54877251,881.63,879.23,1.342]
[1757300762571,2.54877251,881.65,879.23,1.342]
[1757300763176,2.54877251,881.41,879.23,1.342]
[1757300763676,2.54877251,881.44,879.23,1.342]
[1757300764075,0.19729737,881.86,879.23,1.342]
[1757300764076,2.54877251,881.43,879.23,1.342]
[1757300764576,2.54877251,881.46,879.23,1.342]
[1757300765578,2.54877251,881.51,879.23,1.342]
[1757300766177,2.54877251,881.37,879.23,1.342]
[1757300766674,2.54877251,881.47,879.23,1.342]
[1757300767778,2.54877251,881.66,879.23,1.342]
[1757300768274,2.54877251,881.7,879.23,1.342]
[1757300768776,2.54877251,881.57,879.23,1.342]
[1757300769279,2.54877251,881.58,879.23,1.342]
[1757300770278,1.52248813,880.68,879.23,1.342]
[1757300770581,1.52248813,880.69,879.23,1.342]
[1757300771381,1.52248813,880.7,879.23,1.342]
[1757300773885,1.52248813,880.72,879.23,1.342]
[1757300776188,1.52248813,880.71,879.23,1.342]
[1757300776384,1.52248813,880.7,879.23,1.342]
[1757300777088,1.52248813,880.72,879.23,1.342]
[1757300777583,1.52248813,880.61,879.23,1.342]
[1757300778387,1.52248813,880.57,879.23,1.342]
[1757300779189,1.52248813,880.58,879.23,1.342]
[1757300779590,1.52248813,880.8,879.23,1.342]
[1757300780689,1.52248813,880.79,879.23,1.342]
[1757300783193,1.52248813,880.78,879.23,1.342]
[1757300783595,1.52248813,880.74,879.23,1.342]
[1757300786992,1.52248813,880.68,879.23,1.342]
[1757300787496,1.52248813,880.7,879.23,1.342]
[1757300788099,1.52248813,880.69,879.23,1.342]
[1757300788295,1.52248813,880.68,879.23,1.342]
[1757300788694,1.01398173,880.52,879.23,1.342]
[1757300788895,1.01398173,880.51,879.23,1.342]
[1757300789299,1.01398173,880.56,879.23,1.342]
[1757300789497,1.01398173,880.38,879.23,1.342]
[1757300789695,1.01398173,880.37,879.23,1.342]
[1757300789900,1.01398173,880.38,879.23,1.342]
[1757300790300,1.01398173,880.37,879.23,1.342]
[1757300790501,1.01398173,880.38,879.23,1.342]
[1757300790700,1.01398173,880.37,879.23,1.342]
[1757300791000,1.01398173,880.39,879.23,1.342]
[1757300795104,1.01398173,880.38,879.23,1.342]
[1757300797400,1.01398173,880.36,879.23,1.342]
[1757300798005,1.01398173,880.39,879.23,1.342]
[1757300798204,1.01398173,880.4,879.23,1.342]
[1757300798604,1.01398173,880.39,879.23,1.342]
[1757300799204,1.01398173,880.37,879.23,1.342]
[1757300799400,1.01398173,880.34,879.23,1.342]
[1757300799599,1.01398173,880.37,879.23,1.342]
[1757300801401,1.01398173,880.36,879.23,1.342]
[1757300801802,1.01398173,880.4,879.23,1.342]
[1757300802202,1.01398173,880.43,879.23,1.342]
[1757300804106,1.01398173,880.43,879.01,1.01480322]
[1757300804808,1.01398173,880.44,879.02,1.01480322]
[1757300805504,1.01398173,880.43,879.02,1.01480322]
[1757300806406,1.01398173,880.43,879.03,1.01480322]
[1757300806709,1.01398173,880.42,879.02,1.01480322]
[1757300807309,1.01398173,880.44,879.01,1.01480322]
[1757300807507,1.01398173,880.44,879.02,1.367]
[1757300807912,1.01398173,880.43,879.02,2.38180322]
[1757300808110,1.01398173,880.42,879.02,2.38180322]
[1757300808410,1.01398173,880.41,879.03,1.01480322]
[1757300809209,1.01398173,880.41,879.04,1.01480322]
[1757300809412,1.01398173,880.4,879.03,1.01480322]
[1757300810014,1.01398173,880.41,879.03,1.01480322]
[1757300810313,1.01398173,880.39,879.02,2.38180322]
[1757300811313,1.01398173,880.38,879.03,1.01480322]
[1757300811617,1.01398173,880.39,879.03,1.01480322]
[1757300811818,1.01398173,880.37,879.05,1.01480322]
[1757300812114,1.01398173,880.34,879.07,1.01480322]
[1757300812418,1.01398173,880.33,879.07,1.01480322]
[1757300813214,1.01398173,880.32,879.09,1.01480322]
[1757300813618,1.01398173,880.88,879.09,1.01480322]
[1757300813813,1.01398173,880.81,879.02,1.367]
[1757300814519,1.01398173,880.8,879.02,1.367]
[1757300816321,1.01398173,880.79,879.02,1.367]
[1757300817420,1.01398173,880.78,879.02,1.367]
[1757300817621,1.01398173,880.76,879.02,1.367]
[1757300818222,1.52248813,881.15,879.02,1.367]
[1757300818223,1.01398173,880.77,879.02,1.367]
[1757300818419,1.01398173,880.76,879.02,1.367]
[1757300818622,1.01398173,880.77,879.02,1.367]
[1757300819025,1.01398173,880.75,879.02,1.367]
[1757300819321,1.01398173,880.74,879.02,1.367]
[1757300819520,0.19729737,881.86,879.02,1.367]
[1757300819521,1.01398173,880.86,879.02,1.367]
[1757300821528,1.01398173,880.84,879.02,1.367]
[1757300823630,1.01398173,880.84,879.06,1.01480322]
[1757300823631,1.01398173,880.56,879.06,1.01480322]
[1757300824428,1.01398173,880.57,879.07,1.01480322]
[1757300824933,1.01398173,880.44,879.17,1.01480322]
[1757300825132,1.01398173,880.43,879.16,1.01480322]
[1757300825727,1.01398173,880.42,879.15,1.01480322]
[1757300826231,1.01398173,880.43,879.15,1.01480322]
[1757300827134,1.01398173,880.45,879.13,1.01480322]
[1757300827330,1.52248813,880.69,879.02,1.367]
[1757300827331,1.01398173,880.76,879.02,1.367]
[1757300828130,1.01398173,880.75,879.02,1.367]
[1757300828829,1.01398173,880.74,879.02,1.367]
[1757300829634,1.01398173,880.59,879.02,1.367]
[1757300830032,1.01398173,880.58,879.02,1.367]
[1757300830830,1.01398173,880.55,879.02,1.367]
[1757300831534,1.01398173,880.54,879.02,1.367]
[1757300832331,1.01398173,880.49,879.02,1.367]
[1757300833934,1.01398173,880.4,879.02,1.367]
[1757300834533,1.01398173,880.37,879.02,1.367]
[1757300835338,1.01398173,880.19,879.04,1.01480322]
[1757300837135,0.84343614,880.19,879.04,1.01480322]
[1757300837341,1.52248813,880.26,879.11,1.01480322]
[1757300838038,1.52248813,880.25,879.12,1.01480322]
[1757300838239,3.56828151,881.24,879.12,1.01480322]
[1757300838240,1.52248813,880.26,879.12,1.01480322]
[1757300838739,1.52248813,880.25,879.13,1.01480322]
[1757300839337,1.52248813,880.3,879.1,1.01480322]
[1757300839637,1.52248813,880.33,879.12,1.01480322]
[1757300839937,1.52248813,880.34,879.12,1.01480322]
[1757300841240,1.52248813,880.35,879.13,1.01480322]
[1757300841936,0.19729737,881.86,879.03,1.01480322]
[1757300841937,1.52248813,880.6,879.03,1.01480322]
[1757300842141,1.52248813,880.67,879.1,1.01480322]
[1757300842637,1.52248813,880.68,879.09,1.01480322]
[1757300843045,1.52248813,880.78,879.03,1.01480322]
[1757300843242,1.52248813,880.89,879.14,1.01480322]
[1757300843539,1.52248813,880.73,879.39,1.01480322]
[1757300843739,1.52248813,880.75,879.39,1.01480322]
[1757300844240,1.52248813,880.76,879.37,1.01480322]
[1757300845338,1.52248813,880.78,879.36,1.01480322]
[1757300846143,1.52248813,880.79,879.35,1.01480322]
[1757300846843,1.52248813,880.79,879.36,1.455]
[1757300847139,1.52248813,880.8,879.36,1.455]
[1757300847443,1.52248813,880.82,879.36,1.455]
[1757300847644,1.52248813,880.81,879.36,1.455]
[1757300847846,1.52248813,880.79,879.36,1.455]
[1757300848041,1.52248813,880.75,879.36,1.455]
[1757300848245,1.52248813,880.77,879.36,1.455]
[1757300848547,1.52248813,880.87,879.36,1.455]
[1757300848742,1.52248813,880.8,879.36,1.455]
[1757300849552,1.52248813,880.74,879.36,1.455]
[1757300853355,1.52248813,880.75,879.36,1.455]
[1757300853958,1.52248813,880.52,879.36,1.455]
[1757300854158,1.52248813,880.47,879.36,1.455]
[1757300854454,1.27244726,880.47,879.36,1.455]
[1757300854659,2.54877251,881.08,879.36,1.455]
[1757300855158,2.54877251,881.1,879.36,1.455]
[1757300856455,2.54877251,881.11,879.36,1.455]
[1757300857558,2.54877251,881.12,879.36,1.455]
[1757300859661,2.54877251,881.13,879.36,1.455]
[1757300860661,2.54877251,881.15,879.36,1.455]
[1757300862261,2.54877251,881.14,879.36,1.455]
[1757300862757,2.54877251,881.15,879.36,1.455]
[1757300863862,2.54877251,881.35,879.36,1.455]
[1757300864359,2.54877251,881.31,879.36,1.455]
[1757300867259,1.01589457,880.36,879.36,1.455]
[1757300868263,1.01589457,880.37,879.36,1.455]
[1757300868460,1.01589457,880.38,879.36,1.455]
[1757300869259,1.01589457,880.68,879.36,1.455]
[1757300869463,1.01589457,880.69,879.36,1.455]
[1757300869757,0.19729737,881.86,879.36,1.455]
[1757300869758,1.01589457,880.86,879.36,1.455]
[1757300874669,1.01589457,880.88,879.36,1.455]
[1757300875665,1.01589457,880.69,879.36,1.455]
[1757300876864,1.01589457,880.71,879.36,1.455]
[1757300877168,1.01589457,880.7,879.36,1.455]
[1757300878167,1.01589457,880.71,879.36,1.455]
[1757300879069,1.01589457,880.7,879.36,1.455]
[1757300879570,1.01589457,880.53,879.36,1.455]
[1757300880470,1.01589457,880.52,879.36,1.455]
[1757300880766,1.01589457,880.49,879.36,1.455]
[1757300880966,0.19729737,881.86,879.36,1.455]
[1757300880967,1.01589457,880.48,879.36,1.455]
[1757300881268,1.01589457,880.4,879.36,1.455]
[1757300881672,0.85625564,880.4,879.36,1.455]
[1757300882270,1.5235507,880.58,879.36,1.455]
[1757300883272,1.5235507,880.54,879.36,1.455]
[1757300883969,1.5235507,880.5,879.27,1.01480322]
[1757300884173,1.5235507,880.49,879.27,1.01480322]
[1757300884371,1.5235507,880.5,879.27,1.01480322]
[1757300887177,1.5235507,880.51,879.26,1.01480322]
[1757300887472,1.5235507,880.55,879.24,1.01480322]
[1757300887671,1.28644338,880.55,879.24,1.01480322]
[1757300887875,1.28644338,880.55,879.25,1.546]
[1757300888072,2.54877251,881.2,879.25,1.546]
[1757300888275,2.54877251,881.19,879.25,1.546]
[1757300889277,2.54877251,881.24,879.25,1.546]
[1757300889778,2.54877251,881.28,879.25,1.546]
[1757300890378,2.54877251,881.35,879.25,1.546]
[1757300890874,2.54877251,881.44,879.25,1.546]
[1757300891377,2.54877251,881.45,879.25,1.546]
[1757300891974,2.54877251,881.49,879.25,1.546]
[1757300893477,2.54877251,881.48,879.25,1.546]
[1757300894478,2.54877251,881.5,879.25,1.546]
[1757300894974,2.54877251,881.49,879.25,1.546]
[1757300896577,2.54877251,881.48,879.25,1.546]
[1757300897074,2.54877251,881.47,879.25,1.546]
[1757300897575,2.54877251,881.52,879.25,1.546]
[1757300898275,2.54877251,881.53,879.25,1.546]
[1757300898674,2.54877251,881.59,879.25,1.546]
[1757300899278,0.19729737,881.86,879.25,1.546]
[1757300902782,2.74606988,881.86,879.25,1.546]
[1757300903384,2.54877251,881.73,879.25,1.546]
[1757300903885,2.54877251,881.58,879.25,1.546]
[1757300904384,2.54877251,881.57,879.25,1.546]
[1757300906685,2.54877251,881.56,879.25,1.546]
[1757300907787,1.52719295,880.64,879.25,1.546]
[1757300908988,1.52719295,880.56,879.25,1.546]
[1757300909284,1.52719295,880.55,879.25,1.546]
[1757300909487,3.56828151,881.8,879.25,1.546]
[1757300909488,1.52719295,880.71,879.25,1.546]
[1757300909688,1.52719295,880.94,879.38,1.01480322]
[1757300909987,1.52719295,880.95,879.39,1.01480322]
[1757300910486,1.52719295,880.94,879.4,1.01480322]
[1757300911186,1.52719295,880.93,879.4,1.01480322]
[1757300911787,1.01806395,880.7,879.4,1.01480322]
[1757300913187,1.01806395,880.71,879.39,1.01480322]
[1757300915189,1.01806395,880.72,879.38,1.01480322]
[1757300915991,1.01806395,880.55,879.52,1.01480322]
[1757300916391,1.01806395,880.55,879.34,1.53588082]
[1757300916392,1.01806395,880.55,879.51,1.01480322]
[1757300916590,1.01806395,880.56,879.52,1.01480322]
[1757300916788,1.01806395,880.56,879.54,1.01480322]
[1757300917094,1.01806395,880.6,879.51,1.01480322]
[1757300917295,1.01806395,880.6,879.5,1.01480322]
[1757300917493,1.01806395,880.61,879.52,1.01480322]
[1757300917688,1.01806395,880.62,879.52,1.01480322]
[1757300917893,1.01806395,880.61,879.51,1.01480322]
[1757300919090,1.01806395,880.62,879.51,1.01480322]
[1757300919692,1.01806395,880.5,879.39,1.01480322]
[1757300920196,1.01806395,880.5,879.38,1.01480322]
[1757300921092,1.01806395,880.5,879.39,1.01480322]
[1757300921296,1.01806395,880.5,879.38,1.01480322]
[1757300922396,1.01806395,880.55,879.34,1.01480322]
[1757300923197,1.01806395,880.54,879.35,1.01480322]
[1757300924195,1.01806395,880.6,879.3,1.01480322]
[1757300924798,1.01806395,880.6,879.31,1.01480322]
[1757300925001,1.01806395,880.6,879.3,1.01480322]
[1757300925298,1.01806395,880.59,879.3,1.01480322]
[1757300927002,1.01806395,880.57,879.31,1.01480322]
[1757300928705,1.01806395,880.73,879.32,1.01480322]
[1757300929105,1.01806395,880.74,879.32,1.01480322]
[1757300929501,1.01806395,880.78,879.36,1.01480322]
[1757300930206,1.01806395,880.79,879.36,1.01480322]
[1757300930508,1.01806395,880.88,879.29,1.01480322]
[1757300932006,1.01806395,880.87,879.29,1.01480322]
[1757300932202,1.01806395,880.88,879.29,1.01480322]
[1757300932707,1.01806395,880.86,879.3,1.01480322]
[1757300933104,1.01806395,880.87,879.29,1.01480322]
[1757300937212,1.01806395,880.84,879.31,1.01480322]
[1757300938110,1.01806395,880.85,879.31,1.01480322]
[1757300938309,1.01806395,880.83,879.32,1.01480322]
[1757300939611,1.01806395,880.8,879.3,1.01480322]
[1757300940214,1.01806395,880.68,879.4,1.01480322]
[1757300940515,1.01806395,880.7,879.38,1.01480322]
[1757300941314,1.01806395,880.64,879.43,1.01480322]
[1757300941511,1.01806395,880.62,879.4,1.01480322]
[1757300942015,1.01806395,880.61,879.4,1.01480322]
[1757300942316,1.01806395,880.62,879.4,1.01480322]
[1757300942622,1.01806395,880.59,879.42,1.01480322]
[1757300942919,1.01806395,880.71,879.37,1.01480322]
[1757300943117,1.01806395,880.7,879.34,1.01480322]
[1757300943316,1.01806395,880.69,879.32,1.01480322]
[1757300943522,1.01806395,880.63,879.26,1.01480322]
[1757300943819,1.01806395,880.65,879.17,1.01480322]
[1757300944017,1.01806395,880.64,879.17,1.01480322]
[1757300944422,1.01806395,880.62,879.13,1.01480322]
[1757300945623,1.01806395,880.62,879.14,1.331]
[1757300946621,1.01806395,880.61,879.14,2.34580322]
[1757300946824,1.01806395,880.55,879.19,1.01480322]
[1757300947024,1.01806395,880.74,879.14,1.331]
[1757300947224,1.01806395,880.73,879.14,1.331]
[1757300948325,1.01806395,880.72,879.14,1.331]
[1757300949426,1.01806395,880.71,879.14,1.331]
[1757300949627,1.01806395,880.73,879.14,1.331]
[1757300949926,1.01806395,880.72,879.14,1.331]
[1757300951824,1.01806395,880.73,879.14,1.331]
[1757300952128,1.01806395,880.74,879.14,1.331]
[1757300952926,1.01806395,880.79,879.14,1.331]
[1757300953129,1.01806395,880.63,879.26,1.01480322]
[1757300953325,1.01806395,880.68,879.29,1.01480322]
[1757300953526,1.01806395,880.69,879.3,1.01480322]
[1757300955124,1.01806395,880.69,879.31,1.01480322]
[1757300955531,1.01806395,880.69,879.32,1.01480322]
[1757300957230,1.01806395,880.68,879.33,1.01480322]
[1757300957427,2.54877251,881.85,879.14,1.331]
[1757300957428,1.01806395,880.66,879.35,1.01480322]
[1757300958127,1.01806395,880.65,879.35,1.01480322]
[1757300959229,1.01806395,880.93,879.14,1.331]
[1757300959531,1.01806395,880.94,879.14,2.34580322]
[1757300959732,1.01806395,880.82,879.24,1.01480322]
[1757300959931,1.01806395,880.78,879.26,1.01480322]
[1757300960732,1.01806395,880.77,879.27,1.01480322]
[1757300961130,1.01806395,880.78,879.28,1.01480322]
[1757300961531,1.01806395,880.78,879.27,1.01480322]
[1757300962134,1.01806395,880.77,879.27,1.01480322]
[1757300963235,1.01806395,880.75,879.29,1.01480322]
[1757300967237,1.01806395,880.73,879.31,1.01480322]
[1757300968637,1.01806395,880.72,879.33,1.01480322]
[1757300968936,1.01806395,880.6,879.43,1.01480322]
[1757300969141,1.01806395,880.59,879.54,1.01480322]
[1757300969338,1.01806395,880.61,879.55,1.01480322]
[1757300969638,1.01806395,880.48,879.43,1.01480322]
[1757300969837,0.86504841,880.48,879.42,1.01480322]
[1757300970441,1.52719295,880.68,879.41,1.01480322]
[1757300971040,1.52719295,880.67,879.42,1.01480322]
[1757300971842,1.52719295,880.68,879.42,1.01480322]
[1757300972142,1.52719295,880.69,879.43,1.01480322]
[1757300972338,1.52719295,880.75,879.4,1.01480322]
[1757300972544,1.52719295,880.8,879.45,1.01480322]
[1757300972944,1.52719295,880.83,879.43,1.01480322]
[1757300976348,1.52719295,880.84,879.43,1.01480322]
[1757300977146,1.52719295,880.84,879.42,1.01480322]
[1757300978647,1.52719295,880.84,879.43,1.01480322]
[1757300979143,1.52719295,880.84,879.42,1.01480322]
[1757300979548,1.52719295,880.85,879.42,1.01480322]
[1757300979750,1.52719295,880.83,879.42,1.01480322]
[1757300980345,1.52719295,880.82,879.43,1.01480322]
[1757300981049,1.52719295,880.88,879.39,1.01480322]
[1757300982349,1.52719295,880.85,879.41,1.01480322]
[1757300982748,1.52719295,880.82,879.41,1.01480322]
[1757300983746,1.52719295,880.81,879.4,1.01480322]
[1757300983946,1.52719295,880.89,879.36,1.01480322]
[1757300984149,1.52719295,880.83,879.3,1.01480322]
[1757300984349,1.52719295,880.81,879.27,1.01480322]
[1757300984850,1.52719295,880.79,879.26,1.01480322]
[1757300985250,1.52719295,880.76,879.28,1.01480322]
[1757300985450,1.52719295,880.74,879.26,1.01480322]
[1757300985850,1.52719295,880.71,879.23,1.01480322]
[1757300987348,1.52719295,880.73,879.19,1.01480322]
[1757300987849,1.52719295,880.81,879.19,1.01480322]
[1757300988049,1.52719295,880.81,879.14,2.34580322]
[1757300988351,1.52719295,880.82,879.14,2.34580322]
[1757300988952,1.52719295,880.81,879.14,2.34580322]
[1757300989152,0.19733988,881.92,879.14,2.34580322]
[1757300989153,1.52719295,880.82,879.14,2.34580322]
[1757300989452,1.52719295,880.81,879.14,2.34580322]
[1757300989653,1.52719295,880.83,879.16,1.01480322]
[1757300990448,1.52719295,880.83,879.15,1.01480322]
[1757300992248,1.52719295,880.82,879.16,1.01480322]
[1757300992650,1.52719295,880.82,879.17,1.01480322]
[1757300994252,1.52719295,880.84,879.16,1.01480322]
[1757300995657,1.52719295,880.83,879.17,1.01480322]
[1757300995857,1.52719295,880.76,879.21,1.01480322]
[1757300997759,1.52719295,880.66,879.26,1.01480322]
[1757300998059,1.52719295,880.68,879.25,1.01480322]
[1757300998355,1.52719295,880.67,879.26,1.01480322]
[1757300998556,1.52719295,880.74,879.22,1.01480322]
[1757300998754,1.52719295,880.73,879.23,1.01480322]
[1757300998958,1.52719295,880.74,879.23,1.01480322]
[1757300999658,1.52719295,880.72,879.21,1.01480322]
[1757300999959,1.01715791,880.5,879.21,1.01480322]
[1757301000259,1.01715791,880.47,879.23,1.01480322]
[1757301000457,1.01715791,880.52,879.19,1.01480322]
[1757301000658,1.01715791,880.45,879.21,1.01480322]
[1757301000858,1.01715791,880.36,879.14,1.331]
[1757301001361,1.01715791,880.38,879.14,1.331]